bitfinex-derivatives/quotes_ETHF0:USTF0_20241020
["timestamp","ask_amount","ask_price","bid_price","bid_amount"]
[1729400425695,3.58606,2643.8,2643.7,1.3694772]
[1729400425897,3.2078,2643.8,2643.7,1.3694772]
[1729400426693,3.58606,2643.8,2643.7,1.3694772]
[1729400427589,0.37826,2643.8,2643.7,1.3694772]
[1729400428391,0.37826,2643.8,2643.7,0.37827]
[1729400428703,3.2078,2643.9,2643.6,0.9912072]
[1729400428894,3.58605,2643.9,2643.7,1.3694672]
[1729400429394,3.58605,2643.9,2643.8,0.4217]
[1729400435005,0.37825,2643.9,2643.8,0.4217]
[1729400440101,0.4131,2644.0,2643.8,0.79996]
[1729400440298,0.79133,2644.0,2643.8,0.79996]
[1729400440907,0.4131,2644.0,2643.8,0.79996]
[1729400441108,0.37824,2643.9,2643.8,0.79996]
[1729400442020,0.4131,2644.0,2643.8,0.79996]
[1729400442315,0.79134,2644.0,2643.8,0.79996]
[1729400443515,0.37824,2643.9,2643.8,0.79996]
[1729400443810,0.79134,2644.0,2643.8,0.79996]
[1729400444017,0.37824,2644.0,2643.9,0.37824]
[1729400444319,0.37824,2644.0,2643.9,1.18784]
[1729400445116,10.23106403,2644.2,2644.0,0.37823]
[1729400445315,0.37821,2644.2,2644.1,0.3906]
[1729400457541,3.6192,2644.3,2643.9,0.8096]
[1729400457745,0.37823,2644.0,2643.9,1.2193]
[1729400458130,0.77363,2644.0,2643.9,1.2193]
[1729400461642,0.77363,2644.0,2643.9,0.4097]
[1729400461846,1.20123,2644.0,2643.9,0.4097]
[1729400465639,1.20123,2644.0,2643.9,0.78794]
[1729400466839,1.20123,2644.0,2643.9,0.4097]
[1729400467538,1.20123,2644.0,2643.9,0.78794]
[1729400470151,1.20123,2644.0,2643.9,0.4097]
[1729400470943,0.37825,2643.9,2643.7,0.37826]
[1729400471141,0.823,2644.0,2643.7,0.78466]
[1729400471346,0.37824,2643.9,2643.7,0.78466]
[1729400471547,0.37826,2643.8,2643.7,0.4064]
[1729400472250,0.37826,2643.8,2643.7,0.78467]
[1729400473752,0.37826,2643.8,2643.7,3.81516859]
[1729400474050,0.37826,2643.8,2643.7,1.9481485]
[1729400474251,0.37826,2643.8,2643.7,2.3264185]
[1729400474455,0.37825,2643.9,2643.7,2.3264185]
[1729400474648,0.37825,2643.9,2643.8,0.99066369]
[1729400475653,0.37826,2643.8,2643.7,1.39706369]
[1729400475856,0.37826,2643.8,2643.7,2.93894823]
[1729400476157,0.37825,2643.9,2643.7,3.31721823]
[1729400476342,0.37825,2643.9,2643.7,1.77533369]
[1729400477147,0.37826,2643.8,2643.7,1.77533369]
[1729400477352,0.37826,2643.8,2643.7,3.31733375]
[1729400478148,0.37825,2643.9,2643.7,3.31732375]
[1729400478352,3.2078,2644.3,2643.8,0.99066369]
[1729400478562,0.37822,2644.1,2643.9,1.36890369]
[1729400478753,0.37822,2644.1,2644.0,0.8132]
[1729400478951,0.37822,2644.1,2644.0,1.2014]
[1729400481346,0.37822,2644.1,2644.0,2.19206369]
[1729400482951,0.37822,2644.1,2644.0,1.2014]
[1729400484951,0.37822,2644.1,2644.0,1.57963]
[1729400485152,0.37822,2644.1,2644.0,2.57029369]
[1729400485360,0.37822,2644.1,2644.0,2.19206369]
[1729400487656,0.37822,2644.1,2644.0,2.57029369]
[1729400487958,0.37822,2644.1,2644.0,2.19206369]
[1729400488660,0.37822,2644.1,2644.0,1.2014]
[1729400502770,0.37822,2644.1,2644.0,2.19206369]
[1729400503767,0.37822,2644.1,2644.0,1.2014]
[1729400508068,0.37822,2644.1,2644.0,1.57963]
[1729400508575,0.37822,2644.1,2644.0,1.2014]
[1729400509969,0.37822,2644.1,2644.0,1.57963]
[1729400510674,0.37822,2644.1,2644.0,1.2014]
[1729400510871,0.37822,2644.1,2644.0,2.19206369]
[1729400512874,0.37822,2644.1,2644.0,2.57029369]
[1729400513075,0.37822,2644.1,2644.0,4.11227625]
[1729400513272,1.2347,2644.5,2644.0,4.11227625]
[1729400513273,0.37818,2644.4,2644.2,0.3782]
[1729400513676,0.37818,2644.4,2644.3,0.4132]
[1729400517286,0.37818,2644.4,2644.3,1.2552]
[1729400529103,0.8085,2644.5,2644.4,0.37817]
[1729400529385,0.8085,2644.5,2644.3,1.2552]
[1729400529386,3.2078,2644.6,2644.5,0.37816]
[1729400529596,3.2078,2644.6,2644.3,2.2458163]
[1729400529796,3.58595,2644.6,2644.4,0.37816]
[1729400530389,3.58595,2644.6,2644.4,0.37817]
[1729400530592,3.58595,2644.6,2644.3,2.2458163]
[1729400530593,3.58595,2644.6,2644.5,0.37816]
[1729400530785,3.58595,2644.6,2644.4,0.37816]
[1729400531400,0.37815,2644.6,2644.4,0.37816]
[1729400532487,0.37815,2644.6,2644.5,0.37816]
[1729400532987,0.37815,2644.6,2644.4,0.37816]
[1729400536197,0.37815,2644.6,2644.5,0.37816]
[1729400536694,3.2078,2644.8,2644.5,0.37816]
[1729400536896,3.58592,2644.8,2644.7,0.37813]
[1729400537095,0.37812,2644.8,2644.7,0.37813]
[1729400537701,0.37812,2644.8,2644.6,0.37813]
[1729400537901,0.37812,2644.8,2644.7,0.3894]
[1729400538097,0.37812,2644.8,2644.7,0.76753]
[1729400539105,0.37812,2644.8,2644.7,0.3894]
[1729400542798,1.2478,2644.9,2644.7,0.3894]
[1729400542995,1.62591,2644.9,2644.7,0.76753]
[1729400543395,0.37811,2644.8,2644.7,0.3894]
[1729400544702,0.37811,2644.8,2644.7,0.76753]
[1729400544895,0.37811,2644.8,2644.7,0.3894]
[1729400549214,0.37811,2644.8,2644.7,0.76753]
[1729400549605,1.2478,2644.9,2644.7,0.76752]
[1729400549806,0.37811,2644.8,2644.7,0.76752]
[1729400555511,0.37806,2645.2,2645.0,0.37808]
[1729400555701,1.56386,2645.2,2645.0,0.37807]
[1729400555901,1.1858,2645.2,2645.0,0.37808]
[1729400556106,1.1858,2645.2,2645.1,0.37807]
[1729400557812,3.2078,2645.6,2645.1,0.3925]
[1729400558006,1.60723,2645.5,2645.2,0.37805]
[1729400558307,0.37803,2645.4,2645.2,0.37805]
[1729400558610,0.37804,2645.4,2645.2,0.37805]
[1729400563718,1.2292,2645.5,2645.4,0.37803]
[1729400563920,1.2292,2645.5,2645.1,0.3925]
[1729400563921,0.37797,2645.9,2645.6,0.37799]
[1729400564108,3.2078,2646.0,2645.7,0.4197]
[1729400564416,3.2078,2646.0,2645.9,0.37796]
[1729400564607,3.2078,2646.0,2645.8,1.17276]
[1729400564808,3.2078,2646.0,2645.8,0.7948]
[1729400565107,3.2078,2646.0,2645.9,0.37796]
[1729400565812,0.77454,2646.1,2645.9,0.37796]
[1729400566215,0.3966,2646.1,2645.9,0.37796]
[1729400566719,0.77453,2646.1,2645.9,0.37796]
[1729400567122,0.77453,2646.1,2645.8,0.7948]
[1729400567308,0.77453,2646.1,2645.8,1.17276]
[1729400567913,0.3966,2646.1,2645.9,0.37795]
[1729400568211,0.78952,2646.2,2645.9,0.37795]
[1729400568806,0.78952,2646.2,2645.9,0.37796]
[1729400569213,0.78952,2646.2,2646.0,0.37794]
[1729400569709,0.78952,2646.2,2646.1,0.4242]
[1729400570613,3.2078,2646.3,2646.2,0.37791]
[1729400570815,3.2078,2646.3,2646.2,1.21771]
[1729400574309,0.4145,2646.5,2646.2,0.8398]
[1729400574510,0.4145,2646.5,2646.3,0.37789]
[1729400575922,0.79237,2646.5,2646.3,0.37789]
[1729400584420,0.79237,2646.5,2646.4,0.4252]
[1729400586518,0.4145,2646.5,2646.0,3.2078]
[1729400586732,0.37789,2646.4,2646.1,0.37792]
[1729400586920,0.37789,2646.4,2646.1,0.79102]
[1729400587225,0.3925,2646.3,2646.2,0.37791]
[1729400587522,0.3925,2646.3,2646.1,0.4131]
[1729400587732,0.3925,2646.3,2646.1,0.79102]
[1729400588623,0.7704,2646.3,2646.1,0.79102]
[1729400588823,0.4053,2646.2,2646.1,0.79102]
[1729400592324,0.78321,2646.2,2646.1,0.4131]
[1729400592524,0.37794,2646.0,2645.8,1.17647]
[1729400592824,0.37794,2646.0,2645.8,1.17646]
[1729400593129,0.4158,2645.9,2645.8,1.17646]
[1729400593328,0.4158,2645.9,2645.7,0.3915]
[1729400593532,0.79376,2645.9,2645.7,0.76948]
[1729400593827,0.4158,2645.9,2645.7,0.3915]
[1729400594028,0.4158,2645.9,2645.8,0.37797]
[1729400594236,0.4158,2645.9,2645.7,0.3915]
[1729400594425,0.4165,2645.8,2645.5,3.2078]
[1729400594626,0.4165,2645.8,2645.5,3.58581]
[1729400594627,0.3992,2645.7,2645.5,3.58581]
[1729400595027,0.4115,2645.6,2645.5,3.58581]
[1729400599540,0.4115,2645.6,2645.5,0.37801]
[1729400601630,0.78951,2645.6,2645.4,3.2078]
[1729400601924,0.78951,2645.6,2645.4,3.58582]
[1729400602326,0.4115,2645.6,2645.4,3.58582]
[1729400602726,0.4115,2645.6,2645.5,0.37801]
[1729400603236,0.4115,2645.6,2645.4,3.58582]
[1729400603438,0.4115,2645.6,2645.5,0.37801]
[1729400608338,0.4115,2645.6,2645.4,3.58582]
[1729400608638,0.4115,2645.6,2645.4,0.37802]
[1729400608836,0.4115,2645.6,2645.4,3.58582]
[1729400609536,0.4115,2645.6,2645.4,0.37802]
[1729400609838,0.4115,2645.6,2645.4,3.58582]
[1729400610029,0.4115,2645.6,2645.4,3.2078]
[1729400610229,0.4115,2645.6,2645.5,0.37801]
[1729400610435,0.4115,2645.6,2645.4,0.37802]
[1729400610837,0.4115,2645.6,2645.4,3.58583]
[1729400611832,0.4115,2645.6,2645.4,0.37803]
[1729400613930,0.37791,2646.3,2646.0,0.37794]
[1729400614135,0.37791,2646.3,2645.4,0.94508]
[1729400614136,0.37789,2646.4,2646.1,1.61312]
[1729400614344,1.2459,2646.9,2646.1,1.61312]
[1729400614345,0.37788,2646.5,2646.1,1.2352]
[1729400614534,0.37788,2646.5,2646.2,0.37791]
[1729400615047,0.37789,2646.4,2646.1,1.61312]
[1729400615243,0.37786,2646.6,2646.3,0.37789]
[1729400615445,0.37785,2646.7,2646.4,0.37788]
[1729400615746,1.2459,2646.9,2646.7,0.37784]
[1729400616248,1.2459,2646.9,2646.3,0.88]
[1729400616432,1.2459,2646.9,2646.7,0.37783]
[1729400616631,1.2459,2646.9,2646.3,0.88]
[1729400616831,1.2459,2646.9,2646.7,0.37783]
[1729400617338,1.2459,2646.9,2646.4,0.37789]
[1729400617538,0.8405,2646.9,2646.8,0.37783]
[1729400618534,0.8405,2646.9,2646.7,0.37784]
[1729400622631,0.4283,2646.9,2646.7,0.37784]
[1729400624139,0.4283,2646.9,2646.7,0.78954]
[1729400624346,0.4283,2646.9,2646.8,0.4281]
[1729400627137,0.80611,2646.9,2646.8,0.4281]
[1729400627945,0.4283,2646.9,2646.8,0.4281]
[1729400629543,0.80611,2646.9,2646.8,0.4281]
[1729400636843,0.37787,2646.5,2646.4,3.2078]
[1729400638251,0.37789,2646.4,2646.3,0.886]
[1729400642140,0.37789,2646.4,2646.2,0.37791]
[1729400642343,1.74328,2646.8,2646.2,0.50809]
[1729400642742,0.3779,2646.4,2646.2,0.50809]
[1729400642944,0.37784,2646.7,2646.1,5.66532]
[1729400643145,0.3779,2646.4,2646.1,5.66532]
[1729400643545,0.3779,2646.4,2646.1,2.45752]
[1729400643753,0.3779,2646.3,2646.1,2.0796]
[1729400644246,0.37788,2646.5,2646.2,0.37791]
[1729400644444,0.37788,2646.5,2646.2,3.58571]
[1729400645648,0.37789,2646.4,2646.2,3.2078]
[1729400645851,0.3779,2646.3,2646.2,3.2078]
[1729400646162,0.7919,2646.3,2646.2,3.2078]
[1729400646646,0.414,2646.3,2646.1,1.1936]
[1729400646842,0.79191,2646.3,2646.1,1.1936]
[1729400647244,0.79191,2646.3,2646.1,1.57153]
[1729400647446,0.414,2646.3,2646.1,1.57153]
[1729400647954,0.414,2646.3,2646.1,1.1936]
[1729400648151,0.414,2646.3,2646.1,1.57152]
[1729400648757,0.79191,2646.3,2646.1,1.1936]
[1729400649458,0.37791,2646.2,2646.1,1.1936]
[1729400649857,0.79191,2646.3,2646.1,1.1936]
[1729400650153,0.414,2646.3,2646.1,1.1936]
[1729400650357,0.79191,2646.3,2646.1,1.1936]
[1729400651154,0.37791,2646.2,2646.1,0.3919]
[1729400651354,0.80561,2646.2,2646.1,0.3919]
[1729400651545,0.3779,2646.3,2646.1,0.76983]
[1729400651747,0.3779,2646.3,2646.1,0.3919]
[1729400652955,0.3779,2646.3,2646.1,0.76983]
[1729400653758,0.37791,2646.3,2646.1,0.3919]
[1729400658564,0.8411,2646.7,2646.1,0.3919]
[1729400658757,0.37791,2646.2,2646.1,0.3919]
[1729400659057,0.8411,2646.7,2646.1,0.3919]
[1729400659365,0.37791,2646.2,2646.1,0.3919]
[1729400659562,0.37791,2646.3,2646.1,0.3919]
[1729400659862,0.399,2646.2,2646.1,0.3919]
[1729400660958,0.77691,2646.2,2646.1,0.3919]
[1729400661451,0.399,2646.2,2646.1,0.3919]
[1729400662165,0.77691,2646.2,2646.1,0.3919]
[1729400663661,0.399,2646.2,2646.1,0.3919]
[1729400664164,0.77691,2646.2,2646.1,0.3919]
[1729400664667,0.399,2646.2,2646.1,0.3919]
[1729400666269,0.77691,2646.2,2646.1,0.3919]
[1729400666763,0.399,2646.2,2646.1,0.3919]
[1729400667366,0.77691,2646.2,2646.1,0.3919]
[1729400668059,0.399,2646.2,2646.1,0.3919]
[1729400668657,0.77691,2646.2,2646.1,0.3919]
[1729400668963,0.399,2646.2,2646.1,0.3919]
[1729400669964,0.77691,2646.2,2646.1,0.3919]
[1729400675069,0.37794,2646.1,2645.8,3.58577]
[1729400675270,0.408,2646.0,2645.8,4.01027]
[1729400675475,0.78595,2646.0,2645.8,4.01027]
[1729400675972,0.408,2646.0,2645.8,4.01027]
[1729400676173,0.37796,2645.9,2645.8,3.6323]
[1729400676468,0.37796,2645.9,2645.8,3.2078]
[1729400676671,0.79426,2645.9,2645.8,3.2078]
[1729400683287,0.4163,2645.9,2645.6,1.2056]
[1729400683476,0.37799,2645.7,2645.6,1.2056]
[1729400686172,0.37798,2645.8,2645.6,1.2056]
[1729400686376,0.37799,2645.7,2645.6,1.2056]
[1729400686580,0.37798,2645.8,2645.6,1.2056]
[1729400700885,0.37799,2645.7,2645.6,1.2056]
[1729400701288,0.37798,2645.8,2645.6,1.2056]
[1729400702292,0.4248,2645.9,2645.6,1.2056]
[1729400702490,0.37799,2645.7,2645.6,1.2056]
[1729400703290,0.37798,2645.8,2645.6,1.2056]
[1729400705488,0.408,2646.0,2645.6,1.2056]
[1729400705680,0.37799,2645.7,2645.6,1.2056]
[1729400706085,0.37799,2645.7,2645.6,4.9856]
[1729400706285,0.37799,2645.7,2645.6,1.2056]
[1729400715303,0.37798,2645.8,2645.6,1.2056]
[1729400715501,0.78607,2645.9,2645.6,1.58359]
[1729400715698,0.37797,2645.9,2645.6,1.58359]
[1729400717507,0.37797,2645.8,2645.6,2.5742063]
[1729400718007,0.4155,2646.0,2645.6,2.1962163]
[1729400718199,0.79345,2646.0,2645.8,0.37797]
[1729400718503,0.4155,2646.0,2645.8,1.3685863]
[1729400718701,0.4155,2646.0,2645.9,0.4154]
[1729400718999,0.78124,2646.1,2645.9,0.4154]
[1729400721201,0.37794,2646.0,2645.9,0.4154]
[1729400722207,0.78124,2646.1,2645.9,0.4154]
[1729400723410,0.37794,2646.0,2645.9,0.4154]
[1729400723610,0.4033,2646.1,2645.9,0.4154]
[1729400723912,0.79932,2646.2,2645.9,0.79335]
[1729400724210,0.79932,2646.2,2646.0,0.8203]
[1729400724505,0.4214,2646.2,2646.0,0.8203]
[1729400724699,0.37791,2646.3,2646.0,1.19824]
[1729400725297,0.7912,2646.4,2646.0,0.8203]
[1729400725496,0.4163,2646.5,2646.2,0.37791]
[1729400725699,0.4163,2646.5,2646.3,0.4041]
[1729400725700,0.37789,2646.4,2646.3,0.4041]
[1729400727604,0.4163,2646.5,2646.3,0.78199]
[1729400727807,0.4163,2646.5,2646.3,0.4041]
[1729400728007,0.79418,2646.5,2646.3,0.78199]
[1729400728316,0.79418,2646.5,2646.3,0.4041]
[1729400729109,3.2078,2646.6,2646.3,0.4041]
[1729400729309,0.37788,2646.5,2646.3,0.4041]
[1729400731405,0.3886,2646.7,2646.3,0.4041]
[1729400731605,0.37787,2646.6,2646.3,0.4041]
[1729400733814,0.37787,2646.6,2646.3,0.782]
[1729400734706,0.3886,2646.7,2646.3,0.782]
[1729400734906,0.37787,2646.5,2646.3,0.782]
[1729400735216,0.37787,2646.5,2646.3,0.4041]
[1729400735514,0.37787,2646.5,2646.3,0.782]
[1729400735706,0.37787,2646.6,2646.3,0.782]
[1729400736821,0.3886,2646.7,2646.3,0.782]
[1729400737004,0.37787,2646.5,2646.3,0.782]
[1729400737201,0.37786,2646.6,2646.3,0.782]
[1729400740313,0.3886,2646.7,2646.3,0.4041]
[1729400740520,0.37786,2646.6,2646.4,0.8081]
[1729400753935,0.8111,2646.8,2646.4,0.8081]
[1729400754126,0.37787,2646.6,2646.4,0.8081]
[1729400759534,0.3989,2646.5,2646.4,0.8081]
[1729400761735,0.8111,2646.8,2646.4,0.8081]
[1729400761935,0.79715,2646.7,2646.4,1.18599]
[1729400763025,0.79715,2646.7,2646.4,4.39379]
[1729400764123,0.79715,2646.7,2646.4,1.18599]
[1729400764419,0.79715,2646.7,2646.4,4.39379]
[1729400764925,0.79715,2646.7,2646.4,1.18599]
[1729400765323,0.79715,2646.7,2646.4,4.39379]
[1729400765626,0.79715,2646.7,2646.4,4.39378]
[1729400767127,0.79715,2646.7,2646.4,1.18598]
[1729400767333,0.79715,2646.7,2646.4,4.39378]
[1729400769539,0.79715,2646.7,2646.4,1.18598]
[1729400769728,0.79715,2646.7,2646.4,3.2078]
[1729400769729,0.4193,2646.7,2646.4,3.2078]
[1729400770040,0.37786,2646.6,2646.4,3.2078]
[1729400770630,0.4193,2646.7,2646.4,3.58568]
[1729400770840,0.79715,2646.7,2646.4,3.58568]
[1729400771028,0.79715,2646.7,2646.4,3.2078]
[1729400771729,0.79715,2646.7,2646.4,3.58568]
[1729400773036,0.79715,2646.7,2646.5,0.812]
[1729400773542,0.79715,2646.7,2646.6,0.4235]
[1729400777839,0.79715,2646.7,2646.6,0.4335941]
[1729400779632,0.8111,2646.8,2646.6,0.4335941]
[1729400779834,0.8111,2646.8,2646.6,0.4235]
[1729400779835,0.3677459,2646.7,2646.6,0.4235]
[1729400780344,1.18893,2646.8,2646.6,0.27790988]
[1729400781044,0.37784,2646.7,2646.6,0.27790988]
[1729400781229,0.4123,2647.0,2646.6,0.27790988]
[1729400781432,1.2313,2647.0,2646.6,0.27790988]
[1729400781638,0.37782,2646.9,2646.6,0.27790988]
[1729400781941,0.37782,2646.9,2646.6,0.65574988]
[1729400782339,0.37783,2646.9,2646.6,0.65574988]
[1729400782538,1.2313,2647.0,2646.6,0.27790988]
[1729400782539,0.37783,2646.8,2646.6,0.27790988]
[1729400783340,0.37782,2646.9,2646.6,0.65576988]
[1729400783542,0.4079,2646.7,2646.6,0.65576988]
[1729400783737,0.4079,2646.7,2646.6,0.27790988]
[1729400784439,0.78574,2646.7,2646.4,5.0394163]
[1729400784646,0.8106,2646.6,2646.4,5.8368863]
[1729400785343,0.8106,2646.6,2646.4,5.4590163]
[1729400785541,1.18846,2646.6,2646.4,5.4590163]
[1729400785848,1.18846,2646.6,2646.4,5.8368963]
[1729400786047,0.8106,2646.6,2646.4,5.8368963]
[1729400786554,0.8106,2646.6,2646.4,4.9958963]
[1729400788342,1.18846,2646.6,2646.4,4.6180163]
[1729400788544,0.8106,2646.6,2646.4,4.9958963]
[1729400788845,0.8106,2646.6,2646.4,4.00528]
[1729400789244,0.8106,2646.6,2646.4,0.79748]
[1729400789452,0.8106,2646.6,2646.4,4.00528]
[1729400790260,0.8106,2646.6,2646.4,0.79748]
[1729400790460,0.8106,2646.6,2646.4,4.00528]
[1729400790654,0.8106,2646.6,2646.4,3.6274]
[1729400790959,1.18846,2646.6,2646.4,3.6274]
[1729400791654,0.8106,2646.6,2646.4,3.6274]
[1729400792054,1.18846,2646.6,2646.4,3.6274]
[1729400792653,1.18846,2646.6,2646.4,0.4196]
[1729400792955,1.18846,2646.6,2646.4,3.6274]
[1729400793558,0.8106,2646.6,2646.4,4.00529]
[1729400794357,0.37783,2646.8,2646.5,0.37787]
[1729400794562,0.37782,2646.9,2646.6,0.37786]
[1729400794962,0.37782,2646.9,2646.7,0.429]
[1729400795361,1.2339,2647.0,2646.7,4.4572]
[1729400795659,1.2339,2647.0,2646.7,4.83504]
[1729400795861,1.2339,2647.0,2646.7,5.8256563]
[1729400796164,1.6117,2647.0,2646.7,4.83504]
[1729400797154,1.61171,2647.0,2646.7,4.4572]
[1729400797353,0.37782,2646.9,2646.7,4.4572]
[1729400797564,1.61171,2647.0,2646.7,4.83504]
[1729400798060,1.61171,2647.0,2646.7,1.62724]
[1729400798257,0.37782,2646.9,2646.7,1.2494]
[1729400798561,0.37782,2646.9,2646.7,1.62724]
[1729400799157,1.2339,2647.0,2646.7,1.2494]
[1729400799357,0.37783,2646.9,2646.7,1.2494]
[1729400799553,1.2339,2647.0,2646.7,1.2494]
[1729400799759,0.37783,2646.8,2646.7,0.429]
[1729400802158,1.2339,2647.0,2646.5,3.2078]
[1729400802466,0.80304,2646.7,2646.5,3.6182]
[1729400803263,0.9444,2647.4,2646.5,3.6182]
[1729400803264,0.37783,2646.9,2646.5,4.9866763]
[1729400803453,0.37783,2646.8,2646.5,4.9866763]
[1729400803658,0.37783,2646.8,2646.5,3.99606]
[1729400808070,0.37783,2646.8,2646.5,0.78826]
[1729400808270,0.37783,2646.8,2646.5,3.99606]
[1729400808872,0.37783,2646.8,2646.5,0.78826]
[1729400809069,0.37783,2646.8,2646.5,3.99606]
[1729400809470,0.37783,2646.8,2646.5,0.78826]
[1729400810073,0.37783,2646.8,2646.5,3.99606]
[1729400811268,0.37783,2646.8,2646.5,0.78826]
[1729400811576,0.37783,2646.8,2646.5,3.99606]
[1729400812877,0.37783,2646.8,2646.5,0.78826]
[1729400813174,0.37783,2646.8,2646.5,3.99606]
[1729400814178,0.37783,2646.8,2646.5,0.78826]
[1729400814775,0.37783,2646.8,2646.5,3.99606]
[1729400815375,0.37783,2646.8,2646.5,0.78826]
[1729400815879,0.4252,2647.0,2646.5,3.6182]
[1729400816377,0.37785,2646.7,2646.5,3.6182]
[1729400816577,0.3937,2646.6,2646.5,3.6182]
[1729400817679,0.37784,2646.8,2646.5,3.99607]
[1729400818372,0.3937,2647.0,2646.5,3.6182]
[1729400818571,0.3937,2647.0,2646.7,0.37784]
[1729400818572,0.77151,2647.0,2646.7,0.37784]
[1729400818778,0.77151,2647.0,2646.8,0.7879]
[1729400818973,0.77151,2647.0,2646.8,1.1868]
[1729400819175,0.3937,2647.0,2646.8,1.1868]
[1729400819567,0.7715,2647.0,2646.8,1.1868]
[1729400820780,0.7715,2647.0,2646.8,1.56463]
[1729400822076,0.7715,2647.0,2646.8,1.56462]
[1729400825283,0.77151,2647.0,2646.8,1.56463]
[1729400826885,0.3937,2647.0,2646.8,1.1868]
[1729400827290,0.77151,2647.0,2646.8,1.56463]
[1729400831687,0.7715,2647.0,2646.8,1.56463]
[1729400832180,0.3937,2647.0,2646.9,0.37781]
[1729400832386,0.7715,2647.0,2646.8,1.56462]
[1729400832584,0.3937,2647.0,2646.8,1.56462]
[1729400832891,0.3937,2647.0,2646.8,1.1868]
[1729400833194,0.7843,2647.1,2646.8,1.1868]
[1729400833380,3.58556,2647.3,2646.9,0.37781]
[1729400833684,3.58556,2647.3,2646.8,1.1868]
[1729400833883,3.58556,2647.3,2647.1,0.37778]
[1729400834081,3.58556,2647.3,2647.2,0.421]
[1729400834592,3.2078,2647.3,2647.2,0.421]
[1729400834783,3.58556,2647.3,2647.2,0.421]
[1729400837080,0.37776,2647.3,2647.2,0.421]
[1729400855210,1.61215,2647.4,2647.2,0.79876]
[1729400855410,0.37776,2647.3,2647.2,0.79876]
[1729400857112,0.37776,2647.3,2647.2,0.421]
[1729400857312,1.61215,2647.4,2647.2,0.79877]
[1729400857517,1.2344,2647.4,2647.2,0.79877]
[1729400857727,1.61215,2647.4,2647.2,0.79877]
[1729400858017,1.2344,2647.4,2647.2,0.79877]
[1729400858217,0.37776,2647.3,2647.2,0.421]
[1729400858612,1.61215,2647.4,2647.2,0.421]
[1729400858818,1.61215,2647.4,2647.3,0.37776]
[1729400859021,1.2344,2647.4,2647.3,0.37776]
[1729400859210,1.61214,2647.4,2647.3,0.37776]
[1729400859413,1.2344,2647.4,2647.3,0.37776]
[1729400859915,1.61214,2647.4,2647.2,4.00656]
[1729400860316,1.2344,2647.4,2647.3,0.37776]
[1729400860920,3.5978,2647.7,2647.3,0.8142]
[1729400861219,0.39,2647.7,2647.3,0.8142]
[1729400861408,0.8148,2647.8,2647.6,0.37771]
[1729400861608,0.8148,2647.8,2647.7,0.4264]
[1729400862027,1.19249,2647.8,2647.7,0.4264]
[1729400863522,0.3777,2647.7,2647.4,0.37774]
[1729400863820,0.3777,2647.7,2647.5,0.4149]
[1729400864024,4.2821229,2647.8,2647.5,0.4149]
[1729400864320,0.37771,2647.6,2647.5,0.4149]
[1729400864516,0.37772,2647.6,2647.3,0.8142]
[1729400864718,3.4673229,2647.7,2647.4,0.4149]
[1729400864928,0.37773,2647.5,2647.4,0.4149]
[1729400865428,0.37772,2647.6,2647.4,0.4149]
[1729400865720,4.2821229,2647.8,2647.4,0.4149]
[1729400865721,0.37773,2647.5,2647.4,0.4149]
[1729400865912,0.37775,2647.4,2647.1,1.19878]
[1729400866108,1.18445,2647.4,2647.1,1.19878]
[1729400866514,1.18445,2647.4,2647.1,0.37778]
[1729400866718,1.18445,2647.4,2647.1,1.20558]
[1729400867123,1.18445,2647.4,2647.2,3.2078]
[1729400867623,0.8067,2647.4,2647.2,3.58557]
[1729400867814,0.8067,2647.4,2647.3,0.4064]
[1729400868017,1.18444,2647.4,2647.3,0.4064]
[1729400869127,0.8067,2647.4,2647.3,0.4064]
[1729400869421,1.18444,2647.4,2647.3,0.4064]
[1729400872622,0.3778,2647.1,2646.9,0.821]
[1729400872819,0.8067,2647.4,2646.9,0.821]
[1729400872820,0.37776,2647.3,2646.9,0.821]
[1729400873018,0.8067,2647.4,2647.0,3.2078]
[1729400873019,0.37779,2647.1,2647.0,3.2078]
[1729400873233,0.8067,2647.4,2646.9,0.821]
[1729400873530,1.18445,2647.4,2647.1,0.37778]
[1729400873730,1.18445,2647.4,2647.2,0.789]
[1729400873921,1.18445,2647.4,2647.2,1.2142]
[1729400875022,0.8067,2647.4,2647.2,1.2142]
[1729400875223,1.18445,2647.4,2647.2,1.2142]
[1729400875426,0.37776,2647.3,2647.2,1.2142]
[1729400875621,1.18445,2647.4,2647.2,1.2142]
[1729400876231,0.37776,2647.3,2647.2,1.2142]
[1729400876428,1.18445,2647.4,2647.2,1.2142]
[1729400876632,0.37776,2647.3,2647.2,1.2142]
[1729400876832,0.37776,2647.3,2647.2,0.4252]
[1729400877025,0.37776,2647.3,2646.8,1.62112]
[1729400877226,0.37779,2647.1,2646.8,1.62112]
[1729400877426,0.8067,2647.4,2646.8,1.2433]
[1729400877629,0.37779,2647.1,2646.8,1.62112]
[1729400878940,0.37779,2647.1,2647.0,3.2078]
[1729400880138,0.37778,2647.2,2647.0,3.2078]
[1729400880637,0.37778,2647.2,2647.1,0.4025]
[1729400882638,3.4673229,2647.3,2647.1,0.4025]
[1729400882837,0.37777,2647.2,2647.1,0.4025]
[1729400884337,0.79087,2647.2,2647.1,0.4025]
[1729400886338,0.79087,2647.2,2646.9,0.405]
[1729400886339,0.37779,2647.1,2646.9,0.405]
[1729400886634,1.21769,2647.1,2646.9,0.405]
[1729400887735,0.8399,2647.1,2646.9,0.78281]